fUSD/lending_fUSD_20250313
["ID","MTS","AMOUNT","RATE_DAILY","PERIOD"]
[356063661,1741877484257,-331.69581996,0.00028434,18]
[356063662,1741877484266,-506.25482931,0.00028434,18]
[356063663,1741877484277,-500.0,0.00028434,18]
[356063664,1741877484287,-500.0,0.00028434,18]
[356063665,1741877484300,-500.0,0.00028434,18]
[356063666,1741877484310,-500.0,0.00028434,18]
[356063667,1741877484320,-691.39,0.00028434,18]
[356063668,1741877484330,-691.39,0.00028434,18]
[356063669,1741877484339,-691.39,0.00028434,18]
[356063670,1741877484349,-691.39,0.00028434,18]
[356063671,1741877484358,-500.0,0.00028434,18]
[356063672,1741877484369,-500.0,0.00028434,18]
[356063673,1741877484379,-500.0,0.00028434,18]
[356063674,1741877484387,-500.0,0.00028434,18]
[356063675,1741877484397,-500.0,0.00028434,18]
[356063676,1741877484407,-500.0,0.00028434,18]
[356063677,1741877484416,-500.0,0.00028434,18]
[356063678,1741877484426,-500.0,0.00028434,18]
[356063679,1741877484436,-753.81,0.00028434,18]
[356063680,1741877484445,-753.81,0.00028434,18]
[356063681,1741877484455,-753.81,0.00028434,18]
[356063682,1741877484464,-753.81,0.00028434,18]
[356063683,1741877484474,-505.34655811,0.00028434,18]
[356063684,1741877484483,-504.9339487,0.00028434,18]
[356063685,1741877484492,-500.0,0.00028434,18]
[356063686,1741877484502,-500.0,0.00028434,18]
[356063687,1741877484511,-507.98030497,0.00028434,18]
[356063688,1741877484520,-500.0,0.00028434,18]
[356063689,1741877484530,-500.0,0.00028434,18]
[356063690,1741877484540,-500.0,0.00028434,18]
[356063691,1741877484550,-500.0,0.00028434,18]
[356063692,1741877484559,-500.0,0.00028434,18]
[356063693,1741877484569,-500.0,0.00028434,18]
[356063694,1741877484578,-500.0,0.00028434,18]
[356063695,1741877484587,-512.70854308,0.00028434,18]
[356063696,1741877484597,-500.0,0.00028434,18]
[356063697,1741877484606,-508.22163388,0.00028434,18]
[356063698,1741877484616,-500.0,0.00028434,18]
[356063699,1741877484626,-500.0,0.00028434,18]
[356063700,1741877484635,-511.43258705,0.00028434,18]
[356063701,1741877484645,-502.92,0.00028434,18]
[356063702,1741877484654,-502.92,0.00028434,18]
[356063703,1741877484664,-502.92,0.00028434,18]
[356063704,1741877484673,-502.92,0.00028434,18]
[356063705,1741877484683,-500.0,0.00028434,18]
[356063706,1741877484693,-500.0,0.00028434,18]
[356063707,1741877484702,-500.0,0.00028434,18]
[356063708,1741877484712,-500.0,0.00028434,18]
[356063709,1741877484722,-509.85333869,0.00028434,18]
[356063710,1741877484731,-500.0,0.00028434,18]
[356063711,1741877484740,-500.0,0.00028434,18]
[356063712,1741877484749,-500.0,0.00028434,18]
[356063713,1741877484759,-500.0,0.00028434,18]
[356063714,1741877484768,-500.0,0.00028434,18]
[356063715,1741877484778,-500.0,0.00028434,18]
[356063716,1741877484787,-500.00250829,0.00028434,18]
[356063717,1741877484800,-500.0,0.00028434,18]
[356063718,1741877484809,-500.0,0.00028434,18]
[356063719,1741877484818,-500.0,0.00028434,18]
[356063720,1741877484831,-500.0,0.00028434,18]
[356063721,1741877484840,-500.0,0.00028434,18]
[356063722,1741877484850,-500.0,0.00028434,18]
[356063723,1741877484860,-500.0,0.00028434,18]
[356063724,1741877484869,-500.0,0.00028434,18]
[356063725,1741877484879,-500.0,0.00028434,18]
[356063726,1741877484888,-500.0,0.00028434,18]
[356063727,1741877484898,-500.0,0.00028434,18]
[356063728,1741877484911,-500.0,0.00028434,18]
[356063729,1741877484920,-547.45,0.00028434,18]
[356063730,1741877484929,-547.45,0.00028434,18]
[356063731,1741877484939,-547.45,0.00028434,18]
[356063732,1741877484948,-547.45,0.00028434,18]
[356063733,1741877484957,-500.0,0.00028434,18]
[356063734,1741877484967,-508.45590179,0.00028434,18]
[356063735,1741877484976,-500.0,0.00028434,18]
[356063736,1741877484985,-500.0,0.00028434,18]
[356063737,1741877484995,-500.0,0.00028434,18]
[356063738,1741877485004,-500.0,0.00028434,18]
[356063739,1741877485014,-500.0,0.00028434,18]
[356063740,1741877485024,-989.11,0.00028434,18]
[356063741,1741877485034,-989.11,0.00028434,18]
[356063742,1741877485045,-989.11,0.00028434,18]
[356063743,1741877485054,-989.11,0.00028434,18]
[356063744,1741877485064,-804.68,0.00028434,18]
[356063745,1741877485074,-804.68,0.00028434,18]
[356063746,1741877485083,-804.68,0.00028434,18]
[356063747,1741877485093,-804.68,0.00028434,18]
[356063748,1741877485102,-545.3,0.00028434,18]
[356063749,1741877485112,-545.3,0.00028434,18]
[356063750,1741877485121,-545.3,0.00028434,18]
[356063751,1741877485131,-545.3,0.00028434,18]
[356063752,1741877485141,-523.22660506,0.00028434,18]
[356063753,1741877485151,-500.0,0.00028434,18]
[356063754,1741877485161,-518.02920223,0.00028434,18]
[356063755,1741877485170,-500.0,0.00028434,18]
[356063756,1741877485180,-500.0,0.00028434,18]
[356063757,1741877485190,-500.0,0.00028434,18]
[356063758,1741877485199,-511.26568995,0.00028434,18]
[356063759,1741877485209,-500.0,0.00028434,18]
[356063760,1741877485218,-500.0,0.00028434,18]
[356063761,1741877485227,-511.33427662,0.00028434,18]
[356063762,1741877485237,-503.83,0.00028434,18]
[356063763,1741877485246,-503.83,0.00028434,18]
[356063764,1741877485256,-503.83,0.00028434,18]
[356063765,1741877485265,-503.83,0.00028434,18]
[356063766,1741877485275,-500.0,0.00028434,18]
[356063767,1741877485285,-500.0,0.00028434,18]
[356063768,1741877485297,-509.66979027,0.00028434,18]
[356063769,1741877485306,-500.0,0.00028434,18]
[356063770,1741877485315,-500.0,0.00028434,18]
[356063771,1741877485325,-500.0,0.00028434,18]
[356063772,1741877485335,-500.0,0.00028434,18]
[356063773,1741877485344,-500.0,0.00028434,18]
[356063774,1741877485353,-706.18,0.00028434,18]
[356063775,1741877485363,-500.0,0.00028434,18]
[356063776,1741877485372,-500.0,0.00028434,18]
[356063777,1741877485382,-500.0,0.00028434,18]
[356063778,1741877485392,-500.0,0.00028434,18]
[356063779,1741877485401,-500.0,0.00028434,18]
[356063780,1741877485411,-500.0,0.00028434,18]
[356063781,1741877485420,-500.0,0.00028434,18]
[356063782,1741877485429,-297.24355413,0.00028434,18]
[356063783,1741877485438,-500.0,0.00028434,18]
[356063784,1741877485447,-555.49740061,0.00028434,18]
[356063785,1741877485591,-560.01,0.00028434,18]
[356063786,1741877485601,-500.0,0.00028434,18]
[356063787,1741877485612,-500.0,0.00028434,18]
[356063788,1741877485622,-532.17022868,0.00028434,18]
[356063789,1741877485631,-500.0,0.00028434,18]
[356063790,1741877485641,-500.0,0.00028434,18]
[356063791,1741877485650,-500.0,0.00028434,18]
[356063792,1741877485660,-1794.13,0.00028434,18]
[356063793,1741877485670,-500.0,0.00028434,18]
[356063794,1741877485680,-500.0,0.00028434,18]
[356063795,1741877485690,-500.0,0.00028434,18]
[356063796,1741877485699,-500.0,0.00028434,18]
[356063797,1741877485709,-500.0,0.00028434,18]
[356063798,1741877485718,-500.0,0.00028434,18]
[356063799,1741877485728,-500.0,0.00028434,18]
[356063800,1741877485738,-500.0,0.00028434,18]
[356063801,1741877485747,-500.0,0.00028434,18]
[356063802,1741877485757,-500.0,0.00028434,18]
[356063803,1741877485766,-500.0,0.00028434,18]
[356063804,1741877485776,-848.53,0.00028434,18]
[356063805,1741877485786,-500.0,0.00028434,18]
[356063806,1741877485796,-500.0,0.00028434,18]
[356063807,1741877485806,-500.0,0.00028434,18]
[356063808,1741877485815,-500.0,0.00028434,18]
[356063809,1741877485825,-500.0,0.00028434,18]
[356063810,1741877485836,-500.0,0.00028434,18]
[356063811,1741877485849,-500.0,0.00028434,18]
[356063812,1741877485859,-500.0,0.00028434,18]
[356063813,1741877485868,-500.0,0.00028434,18]
[356063814,1741877485880,-500.0,0.00028434,18]
[356063815,1741877485889,-501.4,0.00028434,18]
[356063816,1741877485899,-1201.08,0.00028434,18]
[356063817,1741877485909,-1329.69,0.00028434,18]
[356063818,1741877485919,-469.39139218,0.00028434,18]
[356063819,1741877485929,-500.0,0.00028434,18]
[356063820,1741877485939,-500.0,0.00028434,18]
[356063821,1741877485948,-500.0,0.00028434,18]
[356063822,1741877485958,-500.0,0.00028434,18]
[356063823,1741877485968,-573.25,0.00028434,18]
[356063824,1741877485978,-500.0,0.00028434,18]
[356063825,1741877485987,-500.0,0.00028434,18]
[356063826,1741877485997,-505.53324399,0.00028434,18]
[356063827,1741877486006,-714.67,0.00028434,18]
[356063828,1741877486015,-500.0,0.00028434,18]
[356063829,1741877486025,-500.0,0.00028434,18]
[356063830,1741877486035,-500.0,0.00028434,18]
[356063831,1741877486047,-500.0,0.00028434,18]
[356063832,1741877486056,-582.82,0.00028434,18]
[356063833,1741877486065,-500.0,0.00028435,18]
[356063834,1741877486074,-500.0,0.00028435,18]
[356063835,1741877486084,-502.34,0.00028435,18]
[356063836,1741877486093,-500.0,0.00028435,18]
[356063837,1741877486102,-500.0,0.00028435,18]
[356063838,1741877486111,-500.0,0.00028435,18]
[356063839,1741877486120,-500.0,0.00028435,18]
[356063840,1741877486129,-500.0,0.00028435,18]
[356063841,1741877486139,-500.0,0.00028435,18]
[356063842,1741877486148,-500.0,0.00028435,18]
[356063843,1741877486157,-640.13,0.00028435,18]
[356063844,1741877486166,-500.0,0.00028435,18]
[356063845,1741877486176,-500.0,0.00028435,18]
[356063846,1741877486185,-500.0,0.00028435,18]
[356063847,1741877486195,-500.0,0.00028435,18]
[356063848,1741877486204,-500.0,0.00028435,18]
[356063849,1741877486214,-727.13,0.00028435,18]
[356063850,1741877486223,-500.0,0.00028435,18]
[356063851,1741877486232,-278.67,0.00028435,18]
[356063852,1741877486241,-500.0,0.00028435,18]
[356063853,1741877486250,-622.0,0.00028435,18]
[356063854,1741877486260,-500.0,0.00028435,18]
[356063855,1741877486269,-500.0,0.00028435,18]
[356063856,1741877486279,-1222.98,0.00028435,18]
[356063857,1741877486289,-500.0,0.00028435,18]
[356063858,1741877486302,-500.0,0.00028435,18]
[356063859,1741877486312,-500.0,0.00028435,18]
[356063860,1741877486321,-500.0,0.00028435,18]
[356063861,1741877486331,-658.91,0.00028435,18]
[356063862,1741877486341,-500.0,0.00028435,18]
[356063863,1741877486351,-691.39,0.00028435,18]
[356063864,1741877486360,-500.0,0.00028435,18]
[356063865,1741877486370,-500.0,0.00028435,18]
[356063866,1741877486379,-753.81,0.00028435,18]
[356063867,1741877486389,-500.0,0.00028435,18]
[356063868,1741877486398,-502.92,0.00028435,18]
[356063869,1741877486408,-500.0,0.00028435,18]
[356063870,1741877486417,-500.0,0.00028435,18]
[356063871,1741877486426,-500.0,0.00028435,18]
[356063872,1741877486436,-500.0,0.00028435,18]
[356063873,1741877486444,-500.0,0.00028435,18]
[356063874,1741877486454,-547.45,0.00028435,18]
[356063875,1741877486463,-500.0,0.00028435,18]
[356063876,1741877486473,-989.11,0.00028435,18]
[356063877,1741877486482,-804.68,0.00028435,18]
[356063878,1741877486491,-545.3,0.00028435,18]
[356063879,1741877486500,-503.83,0.00028435,18]
[356063880,1741877486509,-500.0,0.00028435,18]
[356063881,1741877486519,-500.0,0.00028435,18]
[356063882,1741877486528,-500.0,0.00028435,18]
[356063883,1741877486537,-500.0,0.00028435,18]
[356063884,1741877486547,-500.0,0.00028435,18]
[356063885,1741877486566,-500.0,0.00028435,18]
[356063886,1741877486582,-500.0,0.00028435,18]
[356063887,1741877486603,-500.0,0.00028435,18]
[356063888,1741877486621,-500.0,0.00028435,18]
[356063889,1741877486636,-500.0,0.00028437,18]
[356063890,1741877486654,-500.0,0.00028437,18]
[356063891,1741877486674,-500.0,0.00028437,18]
[356063892,1741877486692,-500.0,0.00028437,18]
[356063893,1741877486709,-877.5,0.00028437,18]
[356063894,1741877486728,-546.0,0.00028437,18]
[356063895,1741877486744,-653.78,0.00028437,18]
[356063896,1741877486761,-500.0,0.00028437,18]
[356063897,1741877486775,-500.0,0.00028437,18]
[356063898,1741877486792,-631.05,0.00028437,18]
[356063899,1741877486809,-500.0,0.00028437,18]
[356063900,1741877486826,-500.0,0.00028437,18]
[356063901,1741877486847,-500.0,0.00028437,18]
[356063902,1741877486863,-500.0,0.00028437,18]
[356063903,1741877486878,-778.61,0.00028437,18]
[356063904,1741877486894,-500.0,0.00028437,18]
[356063905,1741877486911,-500.0,0.00028437,18]
[356063906,1741877486925,-500.0,0.00028437,18]
[356063907,1741877486941,-500.0,0.00028437,18]
[356063908,1741877486956,-500.0,0.00028437,18]
[356063909,1741877486971,-500.0,0.00028437,18]
[356063910,1741877486986,-500.0,0.00028437,18]
[356063911,1741877487003,-500.0,0.00028437,18]
[356063912,1741877487018,-500.0,0.00028437,18]
[356063913,1741877487033,-500.0,0.00028437,18]
[356063914,1741877487050,-500.0,0.00028437,18]
[356063915,1741877487065,-500.0,0.00028437,18]
[356063916,1741877487080,-500.0,0.00028437,18]
[356063917,1741877487096,-354.83,0.00028437,7]
[356063918,1741877487110,-500.0,0.00028437,18]
[356063919,1741877487129,-500.0,0.00028437,18]
[356063920,1741877487145,-500.0,0.00028437,18]
[356063921,1741877487162,-500.0,0.00028437,18]
[356063922,1741877487179,-500.0,0.00028437,18]
[356063923,1741877487195,-500.0,0.00028437,18]
[356063924,1741877487210,-500.0,0.00028437,18]
[356063925,1741877487226,-387.55705958,0.00028437,18]
[356063926,1741877487240,-619.13926954,0.00028437,18]
[356063927,1741877487256,-500.0,0.00028437,18]
[356063928,1741877487272,-500.0,0.00028437,18]
[356063929,1741877487288,-500.0,0.00028437,18]
[356063930,1741877487305,-500.0,0.00028437,18]
[356063931,1741877487320,-500.0,0.00028437,18]
[356063932,1741877487335,-500.0,0.00028437,18]
[356063933,1741877487350,-500.0,0.00028437,18]
[356063934,1741877487366,-500.0,0.00028437,18]
[356063935,1741877487382,-691.19,0.00028437,18]
[356063936,1741877487398,-500.0,0.00028437,18]
[356063937,1741877487412,-617.67,0.00028437,18]
[356063938,1741877487428,-500.0,0.00028437,18]
[356063939,1741877487442,-580.97,0.00028437,18]
[356063940,1741877487457,-500.0,0.00028437,18]
[356063941,1741877487473,-264.17180958,0.00028437,18]
[356063942,1741877487488,-500.0,0.00028437,18]
[356063943,1741877487503,-500.0,0.00028437,18]
[356063944,1741877487523,-591.54,0.00028437,18]
[356063945,1741877487537,-500.0,0.00028438,18]
[356063946,1741877487553,-1076.94,0.00028438,18]
[356063947,1741877487568,-920.42,0.00028438,18]
[356063948,1741877487583,-806.85,0.00028438,18]
[356063949,1741877487598,-500.0,0.00028438,18]
[356063950,1741877487614,-500.0,0.00028438,18]
[356063951,1741877487628,-612.98,0.00028438,18]
[356063952,1741877487643,-500.0,0.00028438,18]
[356063953,1741877487658,-500.0,0.00028438,18]
[356063954,1741877487672,-654.17,0.00028438,18]
[356063955,1741877487687,-152.03095051,0.00028438,18]
[356063956,1741877487702,-500.0,0.00028438,18]
[356063957,1741877487716,-500.0,0.00028438,18]
[356063958,1741877487730,-500.0,0.00028438,18]
[356063959,1741877487745,-541.31,0.00028438,18]
[356063960,1741877487760,-500.0,0.00028438,18]
[356063961,1741877487775,-500.0,0.00028438,18]
[356063962,1741877487789,-500.0,0.00028438,18]
[356063963,1741877487805,-500.0,0.00028438,18]
[356063964,1741877487820,-500.0,0.00028438,18]
[356063965,1741877487836,-500.0,0.00028438,18]
[356063966,1741877487853,-500.0,0.00028438,18]
[356063967,1741877487868,-829.63,0.00028438,18]
[356063968,1741877487883,-500.0,0.00028438,18]
[356063969,1741877487899,-628.41,0.00028438,18]
[356063970,1741877487914,-500.0,0.00028438,18]
[356063971,1741877487930,-500.0,0.00028438,18]
[356063972,1741877487944,-709.84,0.00028438,2]
[356063973,1741877487958,-500.0,0.00028438,18]
[356063974,1741877487973,-526.17240682,0.00028438,18]
[356063975,1741877487989,-500.0,0.00028438,18]
[356063976,1741877488002,-500.0,0.00028438,18]
[356063977,1741877488018,-500.0,0.00028438,18]
[356063978,1741877488032,-500.0,0.00028438,18]
[356063979,1741877488046,-500.0,0.00028438,18]
[356063980,1741877488055,-500.0,0.00028438,18]
[356063981,1741877488065,-500.0,0.00028438,18]
[356063982,1741877488074,-500.0,0.00028438,18]
[356063983,1741877488084,-500.0,0.00028438,18]
[356063984,1741877488335,-500.0,0.00028438,18]
[356063985,1741877488346,-590.79,0.00028438,18]
[356063986,1741877488356,-636.60050965,0.00028438,18]
[356063987,1741877488365,-500.0,0.00028438,18]
[356063988,1741877488374,-500.0,0.00028438,18]
[356063989,1741877488383,-500.0,0.00028438,18]
[356063990,1741877488393,-500.0,0.00028438,18]
[356063991,1741877488403,-500.0,0.00028438,18]
[356063992,1741877488412,-500.0,0.00028438,18]
[356063993,1741877488422,-500.0,0.00028438,18]
[356063994,1741877488431,-500.0,0.00028438,18]
[356063995,1741877488440,-500.0,0.00028438,18]
[356063996,1741877488449,-520.42,0.00028438,18]
[356063997,1741877488458,-500.0,0.00028438,18]
[356063998,1741877488467,-1443.64,0.00028438,18]
[356063999,1741877488476,-877.63,0.00028438,18]
[356064000,1741877488485,-543.74,0.00028438,18]
[356064001,1741877488495,-612.61,0.00028438,18]
[356064002,1741877488504,-654.97,0.00028438,18]
[356064003,1741877488514,-500.0,0.00028438,18]
[356064004,1741877488523,-589.78,0.00028438,18]
[356064005,1741877488532,-500.0,0.00028438,18]
[356064006,1741877488542,-500.0,0.00028438,18]
[356064007,1741877488554,-1152.01,0.00028438,18]
[356064008,1741877488563,-1254.42,0.00028438,18]
[356064009,1741877488572,-500.0,0.00028438,18]
[356064010,1741877488582,-611.51,0.00028438,18]
[356064011,1741877488591,-943.15,0.00028438,18]
[356064012,1741877488600,-968.62,0.00028438,18]
[356064013,1741877488610,-1936.13,0.00028438,18]
[356064014,1741877488619,-592.53,0.00028438,18]
[356064015,1741877488628,-2233.91,0.00028438,18]
[356064016,1741877488637,-917.98,0.00028438,18]
[356064017,1741877488647,-3142.78,0.00028438,18]
[356064018,1741877488657,-650.5,0.00028438,18]
[356064019,1741877488666,-500.0,0.00028438,18]
[356064020,1741877488676,-1284.79,0.00028438,18]
[356064021,1741877488686,-673.07,0.00028438,18]
[356064022,1741877488696,-706.18,0.00028438,18]
[356064023,1741877488705,-500.0,0.00028438,18]
[356064024,1741877488715,-750.81,0.00028438,18]
[356064025,1741877488724,-1294.14,0.00028438,18]
[356064026,1741877488733,-1026.51,0.00028438,18]
[356064027,1741877488743,-607.97,0.00028438,10]
[356064028,1741877488753,-560.01,0.00028438,18]
[356064029,1741877488762,-1149.34,0.00028438,18]
[356064030,1741877488772,-500.0,0.00028438,18]
[356064031,1741877488781,-500.0,0.00028438,18]
[356064032,1741877488790,-500.0,0.00028438,18]
[356064033,1741877488803,-500.0,0.00028438,18]
[356064034,1741877488812,-1794.13,0.00028438,18]
[356064035,1741877488821,-500.0,0.00028438,18]
[356064036,1741877488835,-500.0,0.00028438,18]
[356064037,1741877488845,-500.0,0.00028438,18]
[356064038,1741877488854,-500.0,0.00028438,18]
[356064039,1741877488864,-1839.29,0.00028438,18]
[356064040,1741877488874,-500.0,0.00028438,18]
[356064041,1741877488883,-1131.1,0.00028438,18]
[356064042,1741877488893,-500.0,0.00028438,18]
[356064043,1741877488903,-2736.88,0.00028438,18]
[356064044,1741877488912,-500.0,0.00028438,18]
[356064045,1741877488923,-848.53,0.00028438,18]
[356064046,1741877488933,-503.93,0.00028438,18]
[356064047,1741877488942,-426.72965494,0.00028438,18]
[356064048,1741877488952,-588.62874791,0.00028438,18]
[356064049,1741877488962,-500.0,0.00028438,18]
[356064050,1741877488972,-500.0,0.00028438,18]
[356064051,1741877488982,-501.4,0.00028438,18]
[356064052,1741877488991,-1201.08,0.00028438,18]
[356064053,1741877489001,-2839.76,0.00028438,18]
[356064054,1741877489010,-1507.84,0.00028438,18]
[356064055,1741877489020,-1329.69,0.00028438,18]
[356064056,1741877489029,-749.62,0.00028438,18]
[356064057,1741877489039,-573.25,0.00028438,18]
[356064058,1741877489049,-714.67,0.00028438,18]
[356064059,1741877489059,-582.82,0.00028438,18]
[356064060,1741877489069,-500.0,0.00028439,18]
[356064061,1741877489078,-1076.94,0.00028439,18]
[356064062,1741877489088,-920.42,0.00028439,18]
[356064063,1741877489098,-806.85,0.00028439,18]
[356064064,1741877489108,-500.0,0.00028439,18]
[356064065,1741877489117,-500.0,0.00028439,18]
[356064066,1741877489127,-612.98,0.00028439,18]
[356064067,1741877489136,-500.0,0.00028439,18]
[356064068,1741877489145,-500.0,0.00028439,18]
[356064069,1741877489155,-654.17,0.00028439,18]
[356064070,1741877489164,-500.0,0.00028439,18]
[356064071,1741877489174,-500.0,0.00028439,18]
[356064072,1741877489183,-500.0,0.00028439,18]
[356064073,1741877489192,-541.31,0.00028439,18]
[356064074,1741877489202,-500.0,0.00028439,18]
[356064075,1741877489211,-500.0,0.00028439,18]
[356064076,1741877489221,-500.0,0.00028439,18]
[356064077,1741877489230,-500.0,0.00028439,18]
[356064078,1741877489240,-500.0,0.00028439,18]
[356064079,1741877489249,-500.0,0.00028439,18]
[356064080,1741877489259,-500.0,0.00028439,18]
[356064081,1741877489268,-829.63,0.00028439,18]
[356064082,1741877489278,-500.0,0.00028439,18]
[356064083,1741877489288,-628.41,0.00028439,18]
[356064084,1741877489298,-500.0,0.00028439,18]
[356064085,1741877489308,-404.22699271,0.00028439,18]
[356064086,1741877489317,-500.0,0.00028439,18]
[356064087,1741877489327,-500.0,0.00028439,18]
[356064088,1741877489337,-500.0,0.00028439,18]
[356064089,1741877489346,-500.0,0.00028439,18]
[356064090,1741877489355,-500.0,0.00028439,18]
[356064091,1741877489365,-500.0,0.00028439,18]
[356064092,1741877489375,-207.79903019,0.00028439,18]
[356064093,1741877489385,-500.0,0.00028439,18]
[356064094,1741877489394,-500.0,0.00028439,18]
[356064095,1741877489403,-500.0,0.00028439,18]
[356064096,1741877489412,-590.79,0.00028439,18]
[356064097,1741877489421,-500.0,0.00028439,18]
[356064098,1741877489431,-563.37495733,0.00028439,18]
[356064099,1741877489440,-500.0,0.00028439,18]
[356064100,1741877489449,-500.0,0.00028439,18]
[356064101,1741877489458,-500.0,0.00028439,18]
[356064102,1741877489468,-500.0,0.00028439,18]
[356064103,1741877489478,-500.0,0.00028439,18]
[356064104,1741877489488,-500.0,0.00028439,18]
[356064105,1741877489497,-500.0,0.00028439,18]
[356064106,1741877489507,-500.0,0.00028439,18]
[356064107,1741877489516,-500.0,0.00028439,18]
[356064108,1741877489526,-520.42,0.00028439,18]
[356064109,1741877489535,-500.0,0.00028439,18]
[356064110,1741877489546,-500.0,0.00028439,18]
[356064111,1741877489555,-500.0,0.00028439,18]
[356064112,1741877489565,-500.0,0.00028439,18]
[356064113,1741877489574,-500.0,0.00028439,18]
[356064114,1741877489583,-1443.64,0.00028439,18]
[356064115,1741877489594,-500.0,0.00028439,18]
[356064116,1741877489603,-877.63,0.00028439,18]
[356064117,1741877489613,-500.0,0.00028439,18]
[356064118,1741877489622,-500.0,0.00028439,18]
[356064119,1741877489632,-543.74,0.00028439,18]
[356064120,1741877489644,-2624.51,0.00028439,18]
[356064121,1741877489654,-2624.51,0.00028439,18]
[356064122,1741877489665,-877.5,0.00028439,18]
[356064123,1741877489674,-877.5,0.00028439,18]
[356064124,1741877489683,-612.61,0.00028439,18]
[356064125,1741877489693,-841.51,0.00028439,18]
[356064126,1741877489702,-654.97,0.00028439,18]
[356064127,1741877489712,-500.0,0.00028439,18]
[356064128,1741877489722,-546.0,0.00028439,18]
[356064129,1741877489731,-546.0,0.00028439,18]
[356064130,1741877489741,-911.58,0.00028439,18]
[356064131,1741877489751,-653.78,0.00028439,18]
[356064132,1741877489761,-653.78,0.00028439,18]
[356064133,1741877489771,-568.24,0.00028439,18]
[356064134,1741877489781,-500.0,0.00028439,18]
[356064135,1741877489790,-512.35,0.00028439,18]
[356064136,1741877489801,-512.35,0.00028439,18]
[356064137,1741877489811,-1301.45,0.00028439,18]
[356064138,1741877489820,-500.0,0.00028439,18]
[356064139,1741877489830,-630.4,0.00028439,18]
[356064140,1741877489844,-500.0,0.00028439,18]
[356064141,1741877489853,-630.4,0.00028439,18]
[356064142,1741877489863,-500.0,0.00028439,18]
[356064143,1741877489872,-500.0,0.00028439,18]
[356064144,1741877489882,-631.05,0.00028439,18]
[356064145,1741877489891,-631.05,0.00028439,18]
[356064146,1741877489901,-765.33,0.00028439,18]
[356064147,1741877489910,-589.78,0.00028439,18]
[356064148,1741877489921,-1049.42,0.00028439,18]
[356064149,1741877489930,-1049.42,0.00028439,18]
[356064150,1741877489940,-630.74,0.00028439,18]
[356064151,1741877489949,-630.74,0.00028439,18]
[356064152,1741877489958,-500.0,0.00028439,18]
[356064153,1741877489968,-500.0,0.00028439,18]
[356064154,1741877489978,-500.0,0.00028439,18]
[356064155,1741877489988,-500.0,0.00028439,18]
[356064156,1741877489998,-1528.16,0.00028439,18]
[356064157,1741877490008,-500.0,0.00028439,18]
[356064158,1741877490017,-500.0,0.00028439,18]
[356064159,1741877490027,-500.0,0.00028439,18]
[356064160,1741877490037,-500.0,0.00028439,18]